fUSD/lending_fUSD_20250513
["ID","MTS","AMOUNT","RATE_DAILY","PERIOD"]
[360954616,1747161034398,-1350.99,0.00010958,2]
[360954617,1747161034408,-291.987093,0.00010958,2]
[360954618,1747161034418,-400.0,0.00010958,2]
[360954619,1747161034427,-400.0,0.00010958,2]
[360954620,1747161034441,-400.0,0.00010958,2]
[360954621,1747161034453,-400.0,0.00010958,2]
[360954622,1747161034463,-611.14,0.00010958,2]
[360954623,1747161034472,-400.0,0.00010958,2]
[360954624,1747161034482,-400.0,0.00010958,2]
[360954625,1747161034492,-400.0,0.00010958,2]
[360954626,1747161034506,-400.0,0.00010958,2]
[360954627,1747161034515,-400.0,0.00010958,2]
[360954628,1747161034525,-400.0,0.00010958,2]
[360954629,1747161034535,-400.0,0.00010958,2]
[360954630,1747161034545,-2000.0,0.00010958,2]
[360954631,1747161034555,-406.07,0.00010958,2]
[360954632,1747161034564,-400.0,0.00010958,2]
[360954633,1747161034576,-400.0,0.00010958,2]
[360954634,1747161034586,-1504.45,0.00010958,2]
[360954635,1747161034596,-400.0,0.00010958,2]
[360954636,1747161034606,-400.0,0.00010958,2]
[360954637,1747161034616,-400.0,0.00010958,2]
[360954638,1747161034626,-400.0,0.00010958,2]
[360954639,1747161034636,-400.0,0.00010958,2]
[360954640,1747161034646,-400.0,0.00010958,2]
[360954641,1747161034656,-400.0,0.00010958,2]
[360954642,1747161034667,-400.0,0.00010958,2]
[360954643,1747161034677,-400.0,0.00010958,2]
[360954644,1747161034688,-1157.46,0.00010958,2]
[360954645,1747161034699,-400.0,0.00010958,2]
[360954646,1747161034708,-400.0,0.00010958,2]
[360954647,1747161034718,-400.0,0.00010958,2]
[360954648,1747161034728,-400.0,0.00010958,2]
[360954649,1747161034738,-400.0,0.00010958,2]
[360954650,1747161034748,-599.59,0.00010958,2]
[360954651,1747161034758,-400.0,0.00010958,2]
[360954652,1747161034768,-400.0,0.00010958,2]
[360954653,1747161034780,-400.0,0.00010958,2]
[360954654,1747161034790,-400.0,0.00010958,2]
[360954655,1747161034801,-400.0,0.00010958,2]
[360954656,1747161034811,-400.0,0.00010958,2]
[360954657,1747161034821,-400.0,0.00010958,2]
[360954658,1747161034831,-400.0,0.00010958,2]
[360954659,1747161034841,-400.0,0.00010958,2]
[360954660,1747161034851,-400.0,0.00010958,2]
[360954661,1747161034861,-400.0,0.00010958,2]
[360954662,1747161034870,-1257.06,0.00010958,2]
[360954663,1747161034880,-400.0,0.00010958,2]
[360954664,1747161034889,-400.0,0.00010958,2]
[360954665,1747161034899,-400.0,0.00010958,2]
[360954666,1747161034909,-400.0,0.00010958,2]
[360954667,1747161034918,-400.0,0.00010958,2]
[360954668,1747161034927,-400.0,0.00010958,2]
[360954669,1747161034937,-400.0,0.00010958,2]
[360954670,1747161034946,-400.0,0.00010958,2]
[360954671,1747161034957,-400.0,0.00010958,2]
[360954672,1747161034967,-400.0,0.00010958,2]
[360954673,1747161034976,-1495.01,0.00010958,2]
[360954674,1747161034986,-1796.85,0.00010958,2]
[360954675,1747161034996,-836.55,0.00010958,2]
[360954676,1747161035006,-400.0,0.00010958,2]
[360954677,1747161035015,-400.0,0.00010958,2]
[360954678,1747161035025,-400.0,0.00010958,2]
[360954679,1747161035035,-400.0,0.00010958,2]
[360954680,1747161035044,-400.0,0.00010958,2]
[360954681,1747161035054,-400.0,0.00010958,2]
[360954682,1747161035064,-400.0,0.00010958,2]
[360954683,1747161035074,-674.45,0.00010958,2]
[360954684,1747161035083,-400.0,0.00010958,2]
[360954685,1747161035093,-400.0,0.00010958,2]
[360954686,1747161035103,-400.0,0.00010958,2]
[360954687,1747161035113,-566.83,0.00010958,2]
[360954688,1747161035123,-400.0,0.00010958,2]
[360954689,1747161035133,-400.0,0.00010958,2]
[360954690,1747161035143,-400.0,0.00010958,2]
[360954691,1747161035155,-400.0,0.00010958,2]
[360954692,1747161035165,-1241.94,0.00010958,2]
[360954693,1747161035175,-588.87,0.00010958,2]
[360954694,1747161035186,-400.0,0.00010958,2]
[360954695,1747161035197,-400.0,0.00010958,2]
[360954696,1747161035207,-400.0,0.00010958,2]
[360954697,1747161035218,-520.61,0.00010958,2]
[360954698,1747161035229,-400.0,0.00010958,2]
[360954699,1747161035239,-1422.49,0.00010958,2]
[360954700,1747161035251,-1197.7,0.00010958,2]
[360954701,1747161035261,-400.0,0.00010958,2]
[360954702,1747161035272,-400.0,0.00010958,2]
[360954703,1747161035283,-400.0,0.00010958,2]
[360954704,1747161035293,-400.0,0.00010958,2]
[360954705,1747161035305,-400.0,0.00010958,2]
[360954706,1747161035315,-400.0,0.00010958,2]
[360954707,1747161035326,-400.0,0.00010958,2]
[360954708,1747161035337,-400.0,0.00010958,2]
[360954709,1747161035348,-400.0,0.00010958,2]
[360954710,1747161035357,-400.0,0.00010958,2]
[360954711,1747161035367,-2003.26,0.00010958,2]
[360954712,1747161035377,-400.0,0.00010958,2]
[360954713,1747161035387,-400.0,0.00010958,2]
[360954714,1747161035399,-400.0,0.00010958,2]
[360954715,1747161035408,-400.0,0.00010958,2]
[360954716,1747161035418,-400.0,0.00010958,2]
[360954717,1747161035428,-400.0,0.00010958,2]
[360954718,1747161035437,-400.0,0.00010958,2]
[360954719,1747161035446,-400.0,0.00010958,2]
[360954720,1747161035458,-400.0,0.00010958,2]
[360954721,1747161035467,-1943.41,0.00010958,2]
[360954722,1747161035476,-400.0,0.00010958,2]
[360954723,1747161035486,-170.61289775,0.00010958,2]
[360954724,1747161035496,-400.0,0.00010958,2]
[360954725,1747161035510,-400.0,0.00010958,2]
[360954726,1747161035520,-400.0,0.00010958,2]
[360954727,1747161035530,-400.0,0.00010958,2]
[360954728,1747161035540,-400.0,0.00010958,2]
[360954729,1747161035551,-400.0,0.00010958,2]
[360954730,1747161035560,-400.0,0.00010958,2]
[360954731,1747161035569,-400.0,0.00010958,2]
[360954732,1747161035580,-400.0,0.00010958,2]
[360954733,1747161035590,-400.0,0.00010958,2]
[360954734,1747161035600,-400.0,0.00010958,2]
[360954735,1747161035610,-400.0,0.00010958,2]
[360954736,1747161035619,-400.0,0.00010958,2]
[360954737,1747161035629,-400.0,0.00010958,2]
[360954738,1747161035638,-400.0,0.00010958,2]
[360954739,1747161035648,-6.13279634,0.00010958,2]
[360954740,1747161035669,-393.86720366,0.00010958,2]
[360954741,1747161035679,-400.0,0.00010958,2]
[360954742,1747161035689,-400.0,0.00010958,2]
[360954743,1747161035700,-400.0,0.00010958,2]
[360954744,1747161035714,-400.0,0.00010958,2]
[360954745,1747161035723,-400.0,0.00010958,2]
[360954746,1747161035733,-400.0,0.00010958,2]
[360954747,1747161035742,-673.12537064,0.00010958,2]
[360954748,1747161035779,-4398.86462936,0.00010958,2]
[360954749,1747161035789,-400.0,0.00010958,2]
[360954750,1747161035799,-400.0,0.00010958,2]
[360954751,1747161035813,-400.0,0.00010958,2]
[360954752,1747161035822,-400.0,0.00010958,2]
[360954753,1747161035832,-400.0,0.00010958,2]
[360954754,1747161035842,-400.0,0.00010958,2]
[360954755,1747161035851,-267.64001762,0.00010958,2]
[360954756,1747161035861,-400.0,0.00010958,2]
[360954757,1747161035870,-400.0,0.00010958,2]
[360954758,1747161035880,-400.0,0.00010958,2]
[360954759,1747161035890,-1546.32,0.00010958,2]
[360954760,1747161035900,-400.0,0.00010958,2]
[360954761,1747161035909,-400.0,0.00010958,2]
[360954762,1747161035919,-400.0,0.00010958,2]
[360954763,1747161035928,-400.0,0.00010958,2]
[360954764,1747161035938,-400.0,0.00010958,2]
[360954765,1747161035948,-400.0,0.00010958,2]
[360954766,1747161035958,-400.0,0.00010958,2]
[360954767,1747161035967,-400.0,0.00010958,2]
[360954768,1747161035977,-400.0,0.00010958,2]
[360954769,1747161035986,-400.0,0.00010958,2]
[360954770,1747161035995,-400.0,0.00010958,2]
[360954771,1747161036005,-400.0,0.00010958,2]
[360954772,1747161036015,-670.23,0.00010958,2]
[360954773,1747161036024,-400.0,0.00010958,2]
[360954774,1747161036033,-415.96,0.00010958,2]
[360954775,1747161036043,-400.0,0.00010958,2]
[360954776,1747161036053,-400.0,0.00010958,2]
[360954777,1747161036063,-400.0,0.00010958,2]
[360954778,1747161036072,-400.0,0.00010958,2]
[360954779,1747161036082,-400.0,0.00010958,2]
[360954780,1747161036091,-16325.61,0.00010958,2]
[360954781,1747161036101,-1441.79,0.00010958,2]
[360954782,1747161036111,-400.0,0.00010958,2]
[360954783,1747161036121,-7057.79,0.00010958,2]
[360954784,1747161036131,-400.0,0.00010958,2]
[360954785,1747161036140,-400.0,0.00010958,2]
[360954786,1747161036150,-400.0,0.00010958,2]
[360954787,1747161036160,-400.0,0.00010958,2]
[360954788,1747161036170,-400.0,0.00010958,2]
[360954789,1747161036180,-400.0,0.00010958,2]
[360954790,1747161036191,-400.0,0.00010958,2]
[360954791,1747161036200,-400.0,0.00010958,2]
[360954792,1747161036413,-4842.25,0.00010958,2]
[360954793,1747161036423,-400.0,0.00010958,2]
[360954794,1747161036433,-6807.680114,0.00010958,2]
[360954795,1747161036463,-339.17912446,0.00010958,2]
[360954797,1747161037864,-2444.87076154,0.00010958,2]
[360954798,1747161037874,-1073.54,0.00010958,2]
[360954799,1747161037884,-2285.61,0.00010958,2]
[360954800,1747161037893,-400.0,0.00010958,2]
[360954801,1747161037902,-496.36353632,0.00010958,2]
[360954802,1747161037912,-591.5,0.00010958,2]
[360954803,1747161037921,-400.0,0.00010958,2]
[360954804,1747161037931,-400.0,0.00010958,2]
[360954805,1747161037940,-400.0,0.00010958,2]
[360954806,1747161037949,-400.0,0.00010958,2]
[360954807,1747161037958,-3008.32,0.00010958,2]
[360954808,1747161037968,-400.0,0.00010958,2]
[360954809,1747161037977,-400.0,0.00010958,2]
[360954810,1747161037986,-400.0,0.00010958,2]
[360954811,1747161037995,-3077.06,0.00010958,2]
[360954812,1747161038005,-400.0,0.00010958,2]
[360954813,1747161038014,-400.0,0.00010958,2]
[360954814,1747161038024,-400.0,0.00010958,2]
[360954815,1747161038033,-3486.49,0.00010958,2]
[360954816,1747161038043,-400.0,0.00010958,2]
[360954817,1747161038053,-400.0,0.00010958,2]
[360954818,1747161038062,-400.0,0.00010958,2]
[360954819,1747161038072,-400.0,0.00010958,2]
[360954820,1747161038082,-400.0,0.00010958,2]
[360954821,1747161038091,-400.0,0.00010958,2]
[360954822,1747161038101,-400.0,0.00010958,2]
[360954823,1747161038111,-400.0,0.00010958,2]
[360954824,1747161038120,-400.0,0.00010958,2]
[360954825,1747161038130,-400.0,0.00010958,2]
[360954826,1747161038140,-400.0,0.00010958,2]
[360954827,1747161038149,-400.0,0.00010958,2]
[360954828,1747161038159,-400.0,0.00010958,2]
[360954829,1747161038169,-400.0,0.00010958,2]
[360954830,1747161038178,-588.25,0.00010958,2]
[360954831,1747161038189,-400.0,0.00010958,2]
[360954832,1747161038198,-530.95,0.00010958,2]
[360954833,1747161038209,-407.25747442,0.00010958,2]
[360954834,1747161038218,-400.0,0.00010958,2]
[360954835,1747161038228,-210.05960526,0.00010958,2]
[360954836,1747161038240,-189.94039474,0.00010958,2]
[360954837,1747161038251,-1123.40206922,0.00010958,2]
[360954838,1747161038263,-198.56793078,0.00010958,2]
[360954839,1747161038272,-400.0,0.00010958,2]
[360954840,1747161038282,-400.0,0.00010958,2]
[360954841,1747161038291,-400.0,0.00010958,2]
[360954842,1747161038301,-400.0,0.00010958,2]
[360954843,1747161038311,-227.41685079,0.00010958,2]
[360954844,1747161038324,-172.58314921,0.00010958,2]
[360954845,1747161038334,-400.0,0.00010958,2]
[360954847,1747161038343,-136.49951291,0.00010958,2]
[360954848,1747161038360,-263.50048709,0.00010958,2]
[360954849,1747161038369,-400.0,0.00010958,2]
[360954850,1747161038379,-400.0,0.00010958,2]
[360954851,1747161038388,-400.0,0.00010958,2]
[360954852,1747161038398,-400.0,0.00010958,2]
[360954853,1747161038408,-400.0,0.00010958,2]
[360954854,1747161038417,-400.0,0.00010958,2]
[360954855,1747161038427,-400.0,0.00010958,2]
[360954856,1747161038436,-400.0,0.00010958,2]
[360954857,1747161038446,-400.0,0.00010958,2]
[360954858,1747161038458,-724.11,0.00010958,2]
[360954859,1747161038467,-400.0,0.00010958,2]
[360954860,1747161038476,-270.66921398,0.00010958,2]
[360954861,1747161038486,-400.0,0.00010958,2]
[360954862,1747161038495,-400.0,0.00010958,2]
[360954863,1747161038508,-1000.0,0.00010958,2]
[360954864,1747161038517,-400.0,0.00010958,2]
[360954865,1747161038527,-400.0,0.00010958,2]
[360954866,1747161038536,-400.0,0.00010958,2]
[360954867,1747161038546,-400.0,0.00010958,2]
[360954868,1747161038558,-400.0,0.00010958,2]
[360954869,1747161038567,-1295.5,0.00010958,2]
[360954870,1747161038577,-400.0,0.00010958,2]
[360954871,1747161038587,-400.0,0.00010958,2]
[360954872,1747161038596,-5341.74,0.00010958,2]
[360954873,1747161038606,-400.0,0.00010958,2]
[360954874,1747161038615,-400.0,0.00010958,2]
[360954875,1747161038625,-400.0,0.00010958,2]
[360954876,1747161038634,-400.0,0.00010958,2]
[360954877,1747161038643,-400.0,0.00010958,2]
[360954878,1747161038653,-406.28,0.00010958,2]
[360954879,1747161038663,-256.07896584,0.00010958,2]
[360954880,1747161038672,-400.0,0.00010958,2]
[360954881,1747161038681,-400.0,0.00010958,2]
[360954882,1747161038691,-474.25,0.00010958,2]
[360954883,1747161038703,-400.0,0.00010958,2]
[360954884,1747161038712,-400.0,0.00010958,2]
[360954885,1747161038721,-400.0,0.00010958,2]
[360954886,1747161038731,-400.0,0.00010958,2]
[360954887,1747161038741,-400.0,0.00010958,2]
[360954888,1747161038750,-383.22805175,0.00010958,2]
[360954889,1747161038760,-400.0,0.00010958,2]
[360954890,1747161038771,-644.78,0.00010958,2]
[360954891,1747161038780,-400.0,0.00010958,2]
[360954892,1747161038790,-400.0,0.00010958,2]
[360954893,1747161038799,-400.0,0.00010958,2]
[360954894,1747161038808,-2149.23,0.00010958,2]
[360954895,1747161038817,-400.0,0.00010958,2]
[360954896,1747161038827,-400.0,0.00010958,2]
[360954897,1747161038835,-690.6,0.00010958,2]
[360954898,1747161038844,-400.0,0.00010958,2]
[360954899,1747161038853,-400.0,0.00010958,2]
[360954900,1747161038863,-400.0,0.00010958,2]
[360954901,1747161038872,-400.0,0.00010958,2]
[360954902,1747161038882,-400.0,0.00010958,2]
[360954903,1747161038891,-400.0,0.00010958,2]
[360954904,1747161038900,-400.0,0.00010958,2]
[360954905,1747161038910,-760.19,0.00010958,2]
[360954906,1747161038919,-150.0,0.00010959,2]
[360954907,1747161038928,-500.0,0.00010959,2]
[360954908,1747161038938,-500.0,0.00010959,2]
[360954909,1747161038947,-500.0,0.00010959,2]
[360954910,1747161038957,-344.4211729,0.00010959,2]
[360954911,1747161038966,-500.0,0.00010973,2]
[360954912,1747161038975,-500.0,0.00010973,2]
[360954913,1747161038985,-167.54848346,0.00010973,2]
[360954914,1747161038994,-200.0,0.00010977,2]
[360954915,1747161039003,-200.0,0.00010977,2]
[360954916,1747161039013,-255.0,0.00010998,2]
[360954917,1747161039023,-150.0,0.00011,2]
[360954918,1747161039032,-749.90985258,0.00011,2]
[360954919,1747161039042,-94451.0612094,0.00011,2]
[360954920,1747161039252,-1428.37905058,0.00011,2]
[360954921,1747161039263,-1138.66621302,0.00011,2]
[360954922,1747161039275,-6611.7499408,0.00011,2]
[360954923,1747161039288,-1025.3,0.00011,2]
[360954927,1747161039912,-1650.05512954,0.00011,2]
[360954928,1747161039924,-4316.23010528,0.00011,2]
[360954929,1747161039936,-606.05829084,0.00011,2]
[360954930,1747161039971,-500.0,0.00011,2]
[360954931,1747161039987,-31159.780091,0.00011,2]
[360954932,1747161040083,-16201.78172416,0.00011,2]
[360954933,1747161040194,-241204.24210601,0.00011,2]
[360954934,1747161040208,-1950.0,0.00011,2]
[360954935,1747161040252,-5932.81606621,0.00011,2]
[360954941,1747161041190,-102372.40085435,0.00011,2]
[360954942,1747161041204,-106304.74986805,0.00011,2]
[360954943,1747161041215,-9578.8693,0.00011,2]
[360954944,1747161041227,-1000.0,0.00011,2]
[360954945,1747161041239,-5020.83828484,0.00011,2]
[360954946,1747161041250,-42908.35883907,0.00011,2]
[360954947,1747161041262,-1781.137005,0.00011,2]
[360954948,1747161041273,-1363.68834929,0.00011,2]
[360954949,1747161041285,-4592.27815191,0.00011,2]
[360954950,1747161041297,-1814.74099537,0.00011,2]
[360954951,1747161041309,-8456.29292692,0.00011,2]
[360954952,1747161041320,-6167.3096582,0.00011,2]
[360954953,1747161041331,-3832.6903418,0.00011,2]
[360954954,1747161041343,-787.1545,0.00011,2]
[360954955,1747161041355,-1307.35,0.00011,2]
[360954956,1747161041367,-1044.1,0.00011,2]
[360955004,1747161043557,-1761.37212073,0.00011,2]
[360955005,1747161043671,-3743.82174336,0.00011,2]
[360955006,1747161043723,-3050.4888,0.00011,2]
[360955007,1747161043889,-10752.9678174,0.00011,2]
[360955008,1747161043901,-798.75001,0.00011,2]
[360955009,1747161043912,-393.8979766,0.00011,2]
[360955016,1747161045840,-98237.8046804,0.00011,2]
[360955017,1747161045852,-265270.53644385,0.00011,2]
[360955018,1747161045863,-1312.0,0.00011,2]
[360955019,1747161045874,-21245.87739771,0.00011,2]
[360955020,1747161045950,-904.44999998,0.00011,2]
[360955021,1747161046008,-5229.438,0.00011,2]
[360955022,1747161046067,-617410.4071771,0.00011,2]
[360955023,1747161046079,-660.17999996,0.00011,2]
[360955428,1747161890225,765.13,9e-05,2]
[360955454,1747162232011,-762.17542217,9.976e-05,2]
[360955455,1747162232023,-437.82457783,9.976e-05,2]
[360955456,1747162232032,-150.0,9.977e-05,2]
[360955457,1747162232042,-230.33552445,9.977e-05,2]
[360955458,1747162232052,-262.01599656,9.977e-05,2]
[360955459,1747162232062,-500.0,9.977e-05,2]
[360955460,1747162232071,-500.0,9.977e-05,2]
[360955461,1747162232081,-500.0,9.977e-05,2]
[360955462,1747162232091,-500.0,9.977e-05,2]
[360955463,1747162232100,-500.0,9.977e-05,2]
[360955464,1747162232110,-500.0,9.977e-05,2]
[360955465,1747162232119,-500.0,9.977e-05,2]
[360955466,1747162232128,-500.0,9.977e-05,2]
[360955467,1747162232138,-500.0,9.977e-05,2]
[360955468,1747162232147,-500.0,9.977e-05,2]
[360955469,1747162232156,-500.0,9.977e-05,2]
[360955470,1747162232166,-500.0,9.977e-05,2]
[360955471,1747162232176,-500.0,9.977e-05,2]
[360955472,1747162232185,-500.0,9.977e-05,2]
[360955473,1747162232195,-500.0,9.977e-05,2]
[360955474,1747162232205,-500.0,9.977e-05,2]
[360955475,1747162232215,-500.0,9.977e-05,2]
[360955476,1747162232224,-500.0,9.977e-05,2]
[360955477,1747162232236,-500.0,9.977e-05,2]
[360955478,1747162232246,-500.0,9.977e-05,2]
[360955479,1747162232256,-500.0,9.977e-05,2]
[360955480,1747162232265,-500.0,9.977e-05,2]
[360955481,1747162232275,-500.0,9.977e-05,2]
[360955482,1747162232284,-500.0,9.977e-05,2]
[360955483,1747162232294,-500.0,9.977e-05,2]
[360955484,1747162232303,-500.0,9.977e-05,2]
[360955485,1747162232312,-500.0,9.977e-05,2]
[360955486,1747162232321,-500.0,9.977e-05,2]
[360955487,1747162232331,-500.0,9.977e-05,2]
[360955488,1747162232340,-500.0,9.977e-05,2]
[360955489,1747162232350,-500.0,9.977e-05,2]
[360955490,1747162232359,-500.0,9.977e-05,2]
[360955491,1747162232369,-500.0,9.977e-05,2]
[360955492,1747162232378,-337.82148117,9.977e-05,2]
[360955493,1747162232387,-500.0,9.977e-05,2]
[360955494,1747162232396,-500.0,9.977e-05,2]
[360955495,1747162232406,-500.0,9.977e-05,2]
[360955496,1747162232415,-500.0,9.977e-05,2]
[360955497,1747162232424,-500.0,9.977e-05,2]
[360955498,1747162232434,-500.0,9.977e-05,2]
[360955499,1747162232443,-500.0,9.977e-05,2]
[360955500,1747162232453,-500.0,9.977e-05,2]
[360955501,1747162232463,-500.0,9.977e-05,2]
[360955502,1747162232473,-500.0,9.977e-05,2]
[360955503,1747162232484,-500.0,9.977e-05,2]
[360955504,1747162232493,-500.0,9.977e-05,2]
[360955505,1747162232503,-500.0,9.977e-05,2]
[360955506,1747162232512,-500.0,9.977e-05,2]
[360955507,1747162232522,-500.0,9.977e-05,2]
[360955508,1747162232531,-500.0,9.977e-05,2]
[360955509,1747162232540,-500.0,9.977e-05,2]
[360955510,1747162232550,-500.0,9.977e-05,2]
[360955511,1747162232559,-500.0,9.977e-05,2]
[360955512,1747162232569,-500.0,9.977e-05,2]
[360955513,1747162232578,-500.0,9.977e-05,2]
[360955514,1747162232588,-500.0,9.977e-05,2]
[360955515,1747162232598,-500.0,9.977e-05,2]
[360955516,1747162232608,-500.0,9.977e-05,2]
[360955517,1747162232617,-500.0,9.977e-05,2]
[360955518,1747162232627,-500.0,9.977e-05,2]
[360955519,1747162232636,-500.0,9.977e-05,2]
[360955520,1747162232646,-500.0,9.977e-05,2]
[360955521,1747162232656,-500.0,9.977e-05,2]
[360955522,1747162232665,-500.0,9.977e-05,2]
[360955523,1747162232675,-500.0,9.977e-05,2]
[360955524,1747162232684,-500.0,9.977e-05,2]
[360955525,1747162232695,-500.0,9.977e-05,2]
[360955526,1747162232704,-500.0,9.977e-05,2]
[360955527,1747162232715,-500.0,9.977e-05,2]
[360955528,1747162232724,-500.0,9.977e-05,2]
[360955529,1747162232734,-500.0,9.977e-05,2]
[360955530,1747162232743,-500.0,9.977e-05,2]
[360955531,1747162232753,-500.0,9.977e-05,2]
[360955532,1747162232762,-500.0,9.977e-05,2]
[360955533,1747162232771,-500.0,9.977e-05,2]
[360955534,1747162232780,-500.0,9.977e-05,2]
[360955535,1747162232789,-500.0,9.977e-05,2]
[360955536,1747162232798,-500.0,9.977e-05,2]
[360955537,1747162232808,-500.0,9.977e-05,2]
[360955538,1747162232817,-500.0,9.977e-05,2]
[360955539,1747162232826,-500.0,9.977e-05,2]
[360955540,1747162232835,-300.0,9.977e-05,2]
[360955541,1747162232844,-500.0,9.977e-05,2]
[360955542,1747162232853,-500.0,9.977e-05,2]
[360955543,1747162232862,-9952.45168237,0.00010082,2]
[360955544,1747162232875,-10974.86194855,0.00010082,2]
[360955545,1747162232891,-1153.35,0.00010082,2]
[360955546,1747162232910,-1819.33636908,0.00010082,2]
[360955547,1747162232919,-250.0,0.0001021,2]
[360955548,1747162232929,-1000.0,0.00010283,2]
[360955549,1747162232938,-163.92,0.00010349,2]
[360955550,1747162232947,-583.51681948,0.00010858,2]
[360955551,1747162232957,-1000.0,0.00010858,2]
[360955552,1747162232967,-165.76263748,0.00010899,2]
[360955553,1747162232976,-1114.61615729,0.000109,2]
[360955554,1747162232989,-800.0,0.000109,2]
[360955555,1747162233001,-350.0,0.000109,2]
[360955556,1747162233012,-609.88347487,0.000109,2]
[360955557,1747162233031,-476.61109832,0.000109,2]
[360955558,1747162233043,-720.63172157,0.000109,2]
[360955559,1747162237403,-500.0,9.975e-05,2]
[360955560,1747162237413,-127.68208494,9.975e-05,2]
[360955563,1747162238032,-10262.87334795,0.000109,2]
[360955564,1747162238042,-11158.0119,0.000109,2]
[360955565,1747162238052,-682.7713,0.000109,2]
[360955566,1747162238062,-164.02476892,0.000109,2]
[360955567,1747162238072,-191.75367724,0.000109,2]
[360955568,1747162238083,-278.8679606,0.000109,2]
[360955569,1747162238092,-151.0,0.00010951,2]
[360955570,1747162238102,-207.4,0.00010951,2]
[360955571,1747162238111,-151.0,0.00010951,2]
[360955572,1747162238122,-155.0,0.00010951,2]
[360955573,1747162238131,-668.65185757,0.00010951,2]
[360955574,1747162238141,-287.61899177,0.00010951,2]
[360955575,1747162238151,-429.13,0.00010958,2]
[360955576,1747162238161,-400.0,0.00010958,2]
[360955577,1747162238170,-400.0,0.00010958,2]
[360955578,1747162238180,-400.0,0.00010958,2]
[360955579,1747162238190,-400.0,0.00010958,2]
[360955580,1747162238200,-400.0,0.00010958,2]
[360955581,1747162238210,-400.0,0.00010958,2]
[360955582,1747162238220,-400.0,0.00010958,2]
[360955583,1747162238230,-400.0,0.00010958,2]
[360955584,1747162238243,-400.0,0.00010958,2]
[360955585,1747162238252,-400.0,0.00010958,2]
[360955586,1747162238262,-400.0,0.00010958,2]
[360955587,1747162238271,-400.0,0.00010958,2]
[360955588,1747162238281,-400.0,0.00010958,2]
[360955589,1747162238291,-475.48,0.00010958,2]
[360955590,1747162238300,-400.0,0.00010958,2]
[360955591,1747162238310,-400.0,0.00010958,2]
[360955592,1747162238319,-400.0,0.00010958,2]
[360955593,1747162238329,-400.0,0.00010958,2]
[360955594,1747162238338,-400.0,0.00010958,2]
[360955595,1747162238348,-400.0,0.00010958,2]
[360955596,1747162238358,-400.0,0.00010958,2]
[360955597,1747162238367,-400.0,0.00010958,2]
[360955598,1747162238377,-465.1630488,0.00010958,2]
[360955599,1747162238386,-400.0,0.00010958,2]
[360955600,1747162238396,-400.0,0.00010958,2]
[360955601,1747162238406,-400.0,0.00010958,2]
[360955602,1747162238416,-400.0,0.00010958,2]
[360955603,1747162238426,-400.0,0.00010958,2]
[360955605,1747162238436,-471.81410008,0.00010958,2]
[360955606,1747162238446,-400.0,0.00010958,2]
[360955607,1747162238455,-400.0,0.00010958,2]
[360955608,1747162238464,-400.0,0.00010958,2]
[360955609,1747162238473,-400.0,0.00010958,2]
[360955610,1747162238485,-400.0,0.00010958,2]